[Event "African Open (w)"]
[Site "followchess.com"]
[Date "2022.09.25"]
[Round "7"]
[White "Aramude, Sandra"]
[Black "Mbatha, Constance"]
[Result "0-1"]
[ECO "A01"]
[WhiteElo "1813"]
[BlackElo "1613"]
[PlyCount "122"]
[EventDate "2022.??.??"]
[TimeControl "5400+30"]

1. b3 {[%emt 0:00:11]} d5 {[%emt 0:00:48]} 2. Bb2 {[%emt 0:00:22]} c5 {[%emt 0:
00:14]} 3. e3 {[%emt 0:02:00]} Nc6 {[%emt 0:00:30]} 4. Nf3 {[%emt 0:01:45]} Nf6
{[%emt 0:00:55]} 5. Bb5 {[%emt 0:05:37]} Bd7 {[%emt 0:02:07]} 6. O-O {[%emt 0:
00:47]} e6 {[%emt 0:00:53]} 7. d4 {[%emt 0:02:50]} Rc8 {[%emt 0:01:20]} 8. Nbd2
{[%emt 0:02:58]} a6 {[%emt 0:00:37]} 9. Bxc6 {[%emt 0:00:52]} Bxc6 {[%emt 0:00:
04]} 10. Rc1 {[%emt 0:00:46]} c4 {[%emt 0:05:14]} 11. a3 {[%emt 0:12:11]} c3 {
[%emt 0:02:12]} 12. Bxc3 {[%emt 0:02:40]} Bb5 {[%emt 0:00:03]} 13. Bb2 {
[%emt 0:00:26]} Bxf1 {[%emt 0:00:03]} 14. Qxf1 {[%emt 0:00:06]} Be7 {[%emt 0:
01:18]} 15. c4 {[%emt 0:00:36]} O-O {[%emt 0:00:15]} 16. c5 {[%emt 0:02:25]}
Nd7 {[%emt 0:01:02]} 17. e4 {[%emt 0:04:53]} Nb8 {[%emt 0:00:14]} 18. b4 {
[%emt 0:03:54]} f5 {[%emt 0:00:19]} 19. exd5 {[%emt 0:04:03]} Qxd5 {[%emt 0:02:
57]} 20. Qc4 {[%emt 0:02:35]} Bf6 {[%emt 0:01:02]} 21. Qxd5 {[%emt 0:06:38]}
exd5 {[%emt 0:00:03]} 22. a4 {[%emt 0:00:30]} Nc6 {[%emt 0:00:38]} 23. b5 {
[%emt 0:04:59]} axb5 {[%emt 0:03:35]} 24. axb5 {[%emt 0:00:05]} Na7 {[%emt 0:
00:49]} 25. b6 {[%emt 0:04:50]} Nc6 {[%emt 0:00:07]} 26. Ne5 {[%emt 0:01:48]}
Nxe5 {[%emt 0:05:26]} 27. dxe5 {[%emt 0:00:26]} Bg5 {[%emt 0:00:02]} 28. Rd1 {
[%emt 0:12:16]} Bxd2 {[%emt 0:00:03]} 29. Rxd2 {[%emt 0:00:04]} Rxc5 {[%emt 0:
00:12]} 30. h3 {[%emt 0:00:59]} Re8 {[%emt 0:00:19]} 31. Bd4 {[%emt 0:00:31]}
Rb5 {[%emt 0:00:11]} 32. Rc2 {[%emt 0:00:27]} Rb4 {[%emt 0:01:36]} 33. Rd2 {
[%emt 0:00:29]} Kf7 {[%emt 0:02:44]} 34. f4 {[%emt 0:00:25]} Ke6 {[%emt 0:01:
20]} 35. Kf2 {[%emt 0:03:11]} Rc8 {[%emt 0:00:15]} 36. Rd3 {[%emt 0:03:33]}
Rcc4 {[%emt 0:01:04]} 37. Ke3 {[%emt 0:01:49]} g5 {[%emt 0:01:29]} 38. g3 {
[%emt 0:00:42]} h6 {[%emt 0:00:34]} 39. Rd2 {[%emt 0:02:48]} Rb3+ {[%emt 0:01:
22]} 40. Kf2 {[%emt 0:01:46]} Rb1 {[%emt 0:01:27]} 41. Be3 {[%emt 0:02:08]}
Rbc1 {[%emt 0:01:04]} 42. Rd3 {[%emt 0:03:31]} R1c3 {[%emt 0:01:20]} 43. Rd1 {
[%emt 0:01:01]} Rc2+ {[%emt 0:00:42]} 44. Kf3 {[%emt 0:03:36]} R4c3 {[%emt 0:
00:05]} 45. g4 {[%emt 0:00:00]} gxf4 {[%emt 0:00:00]} 46. Kxf4 {[%emt 0:00:00]}
Rc4+ {[%emt 0:00:00]} 47. Bd4 {[%emt 0:00:00]} fxg4 {[%emt 0:00:00]} 48. Kxg4 {
[%emt 0:00:00]} Rb2 {[%emt 0:00:00]} 49. Kh5 {[%emt 0:00:00]} Rxd4 {[%emt 0:00:
00]} 50. Rxd4 {[%emt 0:00:00]} Kxe5 {[%emt 0:00:00]} 51. Rg4 {[%emt 0:00:00]}
Rxb6 {[%emt 0:00:00]} 52. Rg7 {[%emt 0:00:00]} d4 {[%emt 0:00:00]} 53. Kg4 {
[%emt 0:00:00]} Ke4 {[%emt 0:00:00]} 54. Re7+ {[%emt 0:00:00]} Kd3 {[%emt 0:00:
00]} 55. Rd7 {[%emt 0:00:00]} Rb5 {[%emt 0:00:00]} 56. h4 {[%emt 0:00:00]} Ke3
{[%emt 0:00:00]} 57. Re7+ {[%emt 0:00:00]} Kd2 {[%emt 0:00:00]} 58. Kf3 {
[%emt 0:00:00]} Rb3+ {[%emt 0:00:00]} 59. Kf2 {[%emt 0:00:00]} Rb6 {[%emt 0:00:
00]} 60. Kf3 {[%emt 0:00:00]} d3 {[%emt 0:00:00]} 61. Rd7 {[%emt 0:00:00]} Kc2
{[%emt 0:00:00]} 0-1

[Event "African Open (w)"]
[Site "followchess.com"]
[Date "2022.09.25"]
[Round "7"]
[White "Nkhoma, Desiderata"]
[Black "Ayemou Akissi Victoire Sinchi"]
[Result "1/2-1/2"]
[ECO "B00"]
[WhiteElo "1446"]
[BlackElo "1182"]
[PlyCount "74"]
[EventDate "2022.??.??"]
[TimeControl "5400+30"]

1. e4 {[%emt 0:00:09]} b6 {[%emt 0:00:15]} 2. Bc4 {[%emt 0:00:30]} Bb7 {
[%emt 0:00:19]} 3. Qf3 {[%emt 0:01:20]} Nf6 {[%emt 0:00:34]} 4. d3 {[%emt 0:00:
40]} e6 {[%emt 0:00:36]} 5. Ne2 {[%emt 0:01:03]} Be7 {[%emt 0:00:30]} 6. O-O {
[%emt 0:00:28]} O-O {[%emt 0:00:33]} 7. Nbc3 {[%emt 0:00:12]} d6 {[%emt 0:00:
37]} 8. Nf4 {[%emt 0:00:55]} Qd7 {[%emt 0:01:34]} 9. Nh5 {[%emt 0:01:30]} Nc6 {
[%emt 0:01:49]} 10. Ne2 {[%emt 0:02:52]} Ne5 {[%emt 0:01:10]} 11. Nxf6+ {
[%emt 0:01:57]} Bxf6 {[%emt 0:00:19]} 12. Qe3 {[%emt 0:00:56]} Nxc4 {[%emt 0:
00:29]} 13. dxc4 {[%emt 0:00:25]} Qc6 {[%emt 0:00:39]} 14. c3 {[%emt 0:01:25]}
Qxe4 {[%emt 0:01:23]} 15. Qxe4 {[%emt 0:02:23]} Bxe4 {[%emt 0:01:17]} 16. Nf4 {
[%emt 0:00:11]} Be5 {[%emt 0:02:29]} 17. f3 {[%emt 0:01:07]} Bxf4 {[%emt 0:01:
17]} 18. fxe4 {[%emt 0:00:31]} Bxc1 {[%emt 0:00:29]} 19. Raxc1 {[%emt 0:00:19]}
Rfe8 {[%emt 0:01:06]} 20. Rf3 {[%emt 0:01:36]} c6 {[%emt 0:01:23]} 21. Rcf1 {
[%emt 0:00:40]} f6 {[%emt 0:01:06]} 22. Rd3 {[%emt 0:00:55]} Rad8 {[%emt 0:01:
45]} 23. Rfd1 {[%emt 0:01:20]} d5 {[%emt 0:02:30]} 24. cxd5 {[%emt 0:01:02]}
exd5 {[%emt 0:01:47]} 25. exd5 {[%emt 0:00:18]} cxd5 {[%emt 0:00:04]} 26. Rxd5
{[%emt 0:00:50]} Rxd5 {[%emt 0:00:48]} 27. Rxd5 {[%emt 0:00:13]} Kf7 {[%emt 0:
00:21]} 28. Rd7+ {[%emt 0:01:01]} Re7 {[%emt 0:00:23]} 29. Rxe7+ {[%emt 0:00:
16]} Kxe7 {[%emt 0:00:11]} 30. Kf2 {[%emt 0:00:08]} Kd6 {[%emt 0:00:33]} 31.
Ke3 {[%emt 0:01:55]} Kd5 {[%emt 0:01:05]} 32. Kd3 {[%emt 0:01:22]} b5 {[%emt 0:
01:15]} 33. b3 {[%emt 0:04:31]} a5 {[%emt 0:02:37]} 34. a3 {[%emt 0:03:46]} h5
{[%emt 0:01:50]} 35. g3 {[%emt 0:01:33]} g5 {[%emt 0:01:08]} 36. h3 {[%emt 0:
01:11]} f5 {[%emt 0:00:41]} 37. Ke3 {[%emt 0:00:58]} Kc5 {[%emt 0:01:49]}
1/2-1/2

[Event "African Open (w)"]
[Site "followchess.com"]
[Date "2022.09.25"]
[Round "7"]
[White "Amadasun, Rosemary"]
[Black "Van Zyl, Charlize"]
[Result "0-1"]
[ECO "B15"]
[WhiteElo "1807"]
[BlackElo "1710"]
[PlyCount "72"]
[EventDate "2022.??.??"]
[TimeControl "5400+30"]

1. e4 {[%emt 0:00:16]} c6 {[%emt 0:00:04]} 2. d4 {[%emt 0:00:10]} d5 {[%emt 0:
00:06]} 3. Nc3 {[%emt 0:00:20]} dxe4 {[%emt 0:00:07]} 4. Nxe4 {[%emt 0:00:19]}
Nf6 {[%emt 0:00:06]} 5. Ng3 {[%emt 0:02:02]} h5 {[%emt 0:01:22]} 6. h4 {
[%emt 0:01:21]} c5 {[%emt 0:04:14]} 7. dxc5 {[%emt 0:04:32]} Qxd1+ {[%emt 0:03:
01]} 8. Kxd1 {[%emt 0:00:13]} e5 {[%emt 0:00:22]} 9. b4 {[%emt 0:06:03]} a5 {
[%emt 0:01:33]} 10. c3 {[%emt 0:02:30]} Bd7 {[%emt 0:03:42]} 11. Bd3 {[%emt 0:
03:41]} axb4 {[%emt 0:01:54]} 12. cxb4 {[%emt 0:02:26]} Nc6 {[%emt 0:02:04]}
13. Bd2 {[%emt 0:03:03]} Nd5 {[%emt 0:02:44]} 14. b5 {[%emt 0:09:36]} Ncb4 {
[%emt 0:02:14]} 15. Bc4 {[%emt 0:14:13]} Bxc5 {[%emt 0:01:09]} 16. Ne4 {
[%emt 0:07:03]} Be7 {[%emt 0:03:46]} 17. Nf3 {[%emt 0:04:42]} Bg4 {[%emt 0:01:
43]} 18. Bxd5 {[%emt 0:05:27]} Nxd5 {[%emt 0:00:35]} 19. Ke1 {[%emt 0:00:28]}
Bxf3 {[%emt 0:07:30]} 20. gxf3 {[%emt 0:00:02]} Ra3 {[%emt 0:00:19]} 21. Ke2 {
[%emt 0:03:30]} O-O 22. Bg5 {[%emt 0:06:48]} Nf4+ {[%emt 0:07:11]} 23. Bxf4 {
[%emt 0:02:30]} exf4 {[%emt 0:00:05]} 24. Rhd1 {[%emt 0:04:53]} f5 {[%emt 0:06:
37]} 25. Ng5 {[%emt 0:03:25]} Bf6 {[%emt 0:00:52]} 26. Rab1 {[%emt 0:03:38]}
Rxa2+ {[%emt 0:00:05]} 27. Rd2 {[%emt 0:01:21]} Rfa8 {[%emt 0:10:26]} 28. Rxa2
{[%emt 0:05:59]} Rxa2+ {[%emt 0:00:05]} 29. Kf1 {[%emt 0:00:34]} Bxg5 {[%emt 0:
01:09]} 30. hxg5 Kh7 31. Rb4 {[%emt 0:01:03]} Kg6 {[%emt 0:00:55]} 32. Rxf4 {
[%emt 0:01:00]} Rb2 {[%emt 0:00:15]} 33. Rc4 {[%emt 0:01:51]} Rxb5 {[%emt 0:01:
03]} 34. f4 {[%emt 0:00:41]} Rb3 {[%emt 0:02:36]} 35. Kg2 {[%emt 0:00:18]} h4 {
[%emt 0:02:31]} 36. f3 {[%emt 0:00:29]} b5 {[%emt 0:01:09]} 0-1

[Event "African Open (w)"]
[Site "followchess.com"]
[Date "2022.09.25"]
[Round "7"]
[White "Ayemou Mazan Emmanuela Esther"]
[Black "OLORUNTOLA, Oluwatobiloba"]
[Result "0-1"]
[ECO "D00"]
[WhiteElo "1523"]
[BlackElo "1918"]
[PlyCount "178"]
[EventDate "2022.??.??"]
[TimeControl "5400+30"]

1. d4 {[%emt 0:00:16]} d5 {[%emt 0:00:08]} 2. e3 {[%emt 0:00:15]} e6 {[%emt 0:
00:06]} 3. Bd3 {[%emt 0:00:36]} c5 {[%emt 0:00:36]} 4. c3 {[%emt 0:00:41]} Nf6
{[%emt 0:00:25]} 5. Nf3 {[%emt 0:00:48]} Nc6 {[%emt 0:00:17]} 6. Nbd2 {[%emt 0:
01:36]} Be7 {[%emt 0:04:28]} 7. O-O Qc7 {[%emt 0:02:55]} 8. dxc5 {[%emt 0:04:
20]} Bxc5 {[%emt 0:00:14]} 9. e4 {[%emt 0:00:44]} O-O {[%emt 0:06:52]} 10. exd5
{[%emt 0:01:15]} exd5 {[%emt 0:02:36]} 11. Nb3 {[%emt 0:02:35]} Bd6 {[%emt 0:
04:22]} 12. h3 {[%emt 0:02:21]} Bf4 {[%emt 0:08:22]} 13. Nbd4 {[%emt 0:02:55]}
Re8 {[%emt 0:08:57]} 14. Nb5 {[%emt 0:02:08]} Qb8 {[%emt 0:00:03]} 15. Re1 {
[%emt 0:01:36]} Be6 {[%emt 0:01:48]} 16. Qc2 {[%emt 0:02:11]} a6 {[%emt 0:04:
10]} 17. Nbd4 {[%emt 0:00:44]} Nxd4 {[%emt 0:00:44]} 18. Nxd4 {[%emt 0:01:54]}
Bxc1 {[%emt 0:00:48]} 19. Nxe6 {[%emt 0:01:44]} Bh6 {[%emt 0:08:05]} 20. Nd4 {
[%emt 0:01:58]} g6 {[%emt 0:00:55]} 21. Re2 {[%emt 0:01:55]} Rxe2 {[%emt 0:00:
36]} 22. Qxe2 {[%emt 0:00:27]} Qe8 {[%emt 0:00:12]} 23. Qf3 {[%emt 0:00:47]}
Bg7 {[%emt 0:04:45]} 24. Bc2 {[%emt 0:04:51]} Rd8 {[%emt 0:03:50]} 25. Kf1 {
[%emt 0:01:28]} Ne4 {[%emt 0:01:01]} 26. Qe3 {[%emt 0:01:22]} Bxd4 {[%emt 0:04:
29]} 27. Qxd4 {[%emt 0:00:38]} Qb5+ {[%emt 0:00:17]} 28. c4 {[%emt 0:03:50]}
Qxc4+ {[%emt 0:00:45]} 29. Qxc4 {[%emt 0:00:16]} Nd2+ {[%emt 0:00:06]} 30. Ke2
{[%emt 0:00:28]} Nxc4 {[%emt 0:00:12]} 31. b3 {[%emt 0:01:04]} Ne5 {[%emt 0:05:
32]} 32. Rd1 {[%emt 0:01:18]} Kf8 {[%emt 0:02:09]} 33. Be4 {[%emt 0:00:55]} Ke7
{[%emt 0:11:32]} 34. Rxd5 {[%emt 0:00:40]} Rxd5 {[%emt 0:00:15]} 35. Bxd5 {
[%emt 0:00:15]} b6 {[%emt 0:00:07]} 36. f4 {[%emt 0:01:14]} Nd7 {[%emt 0:00:51]
} 37. b4 {[%emt 0:01:29]} f6 {[%emt 0:00:31]} 38. Bb7 {[%emt 0:00:37]} a5 {
[%emt 0:00:26]} 39. bxa5 {[%emt 0:00:17]} bxa5 {[%emt 0:00:01]} 40. Bc6 {
[%emt 0:00:52]} Nf8 {[%emt 0:01:40]} 41. Kd3 {[%emt 0:02:42]} Kd6 {[%emt 0:00:
11]} 42. Bb5 {[%emt 0:03:04]} Kc5 {[%emt 0:02:56]} 43. a4 {[%emt 0:01:23]} Ne6
{[%emt 0:00:48]} 44. g3 {[%emt 0:00:57]} Nc7 {[%emt 0:02:05]} 45. Bd7 {[%emt 0:
01:42]} Nd5 {[%emt 0:01:09]} 46. Bb5 {[%emt 0:02:05]} Kb4 {[%emt 0:08:13]} 47.
Kc2 {[%emt 0:11:18]} Nc3 {[%emt 0:00:29]} 48. Bd3 {[%emt 0:00:41]} Nxa4 {
[%emt 0:00:21]} 49. h4 {[%emt 0:02:54]} Nc5 {[%emt 0:01:48]} 50. Be2 {[%emt 0:
03:01]} a4 {[%emt 0:00:00]} 51. g4 {[%emt 0:00:00]} Ne6 {[%emt 0:00:00]} 52.
Bd3 {[%emt 0:00:00]} Nxf4 {[%emt 0:00:00]} 53. Be4 {[%emt 0:00:00]} Kc4 {
[%emt 0:00:00]} 54. Kb2 {[%emt 0:00:00]} Kd4 {[%emt 0:00:00]} 55. Bc2 {[%emt 0:
00:00]} Nd3+ {[%emt 0:00:00]} 56. Ka3 {[%emt 0:00:00]} f5 {[%emt 0:00:00]} 57.
gxf5 {[%emt 0:00:00]} gxf5 {[%emt 0:00:00]} 58. Kxa4 {[%emt 0:00:00]} f4 {
[%emt 0:00:00]} 59. Kb5 {[%emt 0:00:00]} Ke3 {[%emt 0:00:00]} 60. Bd1 {[%emt 0:
00:00]} f3 {[%emt 0:00:00]} 61. Bxf3 {[%emt 0:00:00]} Kxf3 {[%emt 0:00:00]} 62.
Kc4 {[%emt 0:00:00]} Nf4 {[%emt 0:00:00]} 63. Kd4 {[%emt 0:00:00]} Kg4 {
[%emt 0:00:00]} 64. Ke4 {[%emt 0:00:00]} h5 {[%emt 0:00:00]} 65. Ke3 {[%emt 0:
00:00]} Ng2+ {[%emt 0:00:00]} 66. Kf2 {[%emt 0:00:00]} Nxh4 {[%emt 0:00:00]}
67. Kg1 {[%emt 0:00:00]} Kh3 {[%emt 0:00:31]} 68. Kh1 {[%emt 0:00:00]} Nf5 {
[%emt 0:00:23]} 69. Kg1 Ng3 70. Kf2 {[%emt 0:00:00]} Kh2 {[%emt 0:00:48]} 71.
Kf3 {[%emt 0:00:00]} h4 {[%emt 0:01:19]} 72. Kf2 {[%emt 0:00:00]} h3 {[%emt 0:
00:16]} 73. Kf3 {[%emt 0:00:00]} Kg1 {[%emt 0:00:11]} 74. Kxg3 {[%emt 0:00:00]}
h2 {[%emt 0:00:01]} 75. Kf3 {[%emt 0:00:00]} h1=Q+ {[%emt 0:00:10]} 76. Ke3 {
[%emt 0:00:00]} Qh4 {[%emt 0:00:29]} 77. Kd3 {[%emt 0:00:00]} Qe1 {[%emt 0:00:
22]} 78. Kd4 {[%emt 0:00:00]} Qe2 {[%emt 0:00:24]} 79. Kd5 {[%emt 0:00:00]} Qe3
{[%emt 0:00:10]} 80. Kd6 {[%emt 0:00:00]} Qe4 {[%emt 0:00:08]} 81. Kd7 {
[%emt 0:00:00]} Qe5 {[%emt 0:00:06]} 82. Kc6 {[%emt 0:00:00]} Qd4 {[%emt 0:00:
13]} 83. Kb5 {[%emt 0:00:00]} Qc3 {[%emt 0:00:12]} 84. Ka4 {[%emt 0:00:00]} Qb2
{[%emt 0:00:15]} 85. Ka5 {[%emt 0:00:00]} Kf2 {[%emt 0:00:12]} 86. Ka4 {
[%emt 0:00:00]} Ke3 {[%emt 0:00:21]} 87. Ka5 {[%emt 0:00:00]} Kd4 {[%emt 0:00:
11]} 88. Ka6 {[%emt 0:00:00]} Kc5 {[%emt 0:00:08]} 89. Ka7 {[%emt 0:00:00]} Kc6
{[%emt 0:00:07]} 0-1

[Event "African Open (w)"]
[Site "followchess.com"]
[Date "2022.09.25"]
[Round "7"]
[White "Marochkina, Nadezhda Valerevna"]
[Black "Phiri Bertha"]
[Result "1/2-1/2"]
[ECO "D12"]
[WhiteElo "1689"]
[BlackElo "1584"]
[PlyCount "77"]
[EventDate "2022.??.??"]
[TimeControl "5400+30"]

1. d4 {[%emt 0:00:02]} d5 {[%emt 0:00:07]} 2. c4 {[%emt 0:00:05]} Nf6 {[%emt 0:
00:21]} 3. Nf3 {[%emt 0:00:09]} c6 {[%emt 0:01:35]} 4. e3 {[%emt 0:01:58]} Bg4
{[%emt 0:00:39]} 5. Be2 {[%emt 0:01:25]} e6 {[%emt 0:00:57]} 6. Nc3 {[%emt 0:
01:17]} Be7 {[%emt 0:02:52]} 7. O-O {[%emt 0:00:09]} dxc4 {[%emt 0:00:22]} 8.
Bxc4 {[%emt 0:00:11]} Nbd7 {[%emt 0:00:06]} 9. Be2 {[%emt 0:00:32]} Qc7 {
[%emt 0:00:56]} 10. a3 {[%emt 0:04:03]} O-O {[%emt 0:01:00]} 11. b4 {[%emt 0:
00:51]} a5 {[%emt 0:03:33]} 12. b5 {[%emt 0:01:40]} c5 {[%emt 0:01:34]} 13. Bb2
{[%emt 0:03:52]} Rfd8 {[%emt 0:02:08]} 14. Rc1 {[%emt 0:06:28]} b6 {[%emt 0:00:
25]} 15. Qb3 {[%emt 0:04:11]} Rac8 {[%emt 0:00:15]} 16. h3 {[%emt 0:10:59]} Bh5
{[%emt 0:01:37]} 17. Na4 {[%emt 0:02:17]} Qb8 {[%emt 0:00:07]} 18. dxc5 {
[%emt 0:02:02]} Bxc5 {[%emt 0:00:24]} 19. Rfe1 {[%emt 0:03:28]} Bg6 {[%emt 0:
08:56]} 20. Bd4 {[%emt 0:03:09]} Ne4 {[%emt 0:03:41]} 21. Qb2 {[%emt 0:03:28]}
Qd6 {[%emt 0:12:28]} 22. Bxc5 {[%emt 0:02:17]} Nexc5 {[%emt 0:02:12]} 23. Nxc5
{[%emt 0:01:22]} Nxc5 {[%emt 0:04:10]} 24. Red1 {[%emt 0:02:20]} Qb8 {[%emt 0:
01:46]} 25. Nd4 {[%emt 0:01:14]} Be4 {[%emt 0:01:11]} 26. Bf3 {[%emt 0:14:45]}
Bxf3 {[%emt 0:08:08]} 27. Nxf3 {[%emt 0:01:06]} Na4 {[%emt 0:07:44]} 28. Rxd8+
{[%emt 0:01:14]} Rxd8 {[%emt 0:00:05]} 29. Qc2 {[%emt 0:00:46]} Nc5 {[%emt 0:
00:26]} 30. Nd4 {[%emt 0:00:23]} Rd5 {[%emt 0:02:21]} 31. Nb3 {[%emt 0:08:05]}
g6 {[%emt 0:07:36]} 32. Rd1 {[%emt 0:03:46]} Rxd1+ {[%emt 0:04:41]} 33. Qxd1 {
[%emt 0:00:09]} Nxb3 {[%emt 0:00:09]} 34. Qxb3 {[%emt 0:00:07]} Qd6 {[%emt 0:
00:04]} 35. Qc3 {[%emt 0:01:57]} h5 {[%emt 0:05:34]} 36. Qc6 {[%emt 0:02:53]}
Qd8 {[%emt 0:01:36]} 37. Kh2 {[%emt 0:03:09]} Kf8 {[%emt 0:00:03]} 38. Qb7 {
[%emt 0:05:20]} Ke8 {[%emt 0:02:42]} 39. Kg1 1/2-1/2

[Event "African Open (w)"]
[Site "followchess.com"]
[Date "2022.09.25"]
[Round "7"]
[White "Michael Bridget"]
[Black "Caxita, Esperanca"]
[Result "1-0"]
[ECO "B01"]
[WhiteElo "1800"]
[BlackElo "1961"]
[PlyCount "41"]
[EventDate "2022.??.??"]
[TimeControl "5400+30"]

1. e4 {[%emt 0:00:03]} d5 {[%emt 0:00:12]} 2. exd5 {[%emt 0:00:30]} Qxd5 {
[%emt 0:00:07]} 3. Nc3 {[%emt 0:02:20]} Qd6 {[%emt 0:00:09]} 4. d4 {[%emt 0:00:
26]} Nf6 {[%emt 0:00:10]} 5. Nb5 {[%emt 0:01:43]} Qd8 {[%emt 0:00:56]} 6. c4 {
[%emt 0:00:22]} c6 {[%emt 0:02:44]} 7. Nc3 {[%emt 0:00:19]} g6 {[%emt 0:00:28]}
8. Nf3 {[%emt 0:01:09]} Bg7 {[%emt 0:00:20]} 9. Be2 {[%emt 0:00:53]} Nbd7 {
[%emt 0:02:41]} 10. O-O {[%emt 0:01:52]} O-O {[%emt 0:00:27]} 11. h3 {[%emt 0:
01:20]} b6 {[%emt 0:01:51]} 12. Be3 {[%emt 0:02:50]} Bb7 {[%emt 0:00:55]} 13.
Qd2 {[%emt 0:01:57]} Re8 {[%emt 0:00:57]} 14. Bf4 {[%emt 0:01:20]} Nh5 {
[%emt 0:02:53]} 15. Bh2 {[%emt 0:00:25]} Bf6 {[%emt 0:11:07]} 16. g4 {[%emt 0:
08:01]} e5 {[%emt 0:02:22]} 17. dxe5 {[%emt 0:02:17]} Nxe5 {[%emt 0:04:32]} 18.
Qxd8 {[%emt 0:01:39]} Nxf3+ {[%emt 0:00:09]} 19. Bxf3 {[%emt 0:00:07]} Rc8 20.
Qxe8+ Rxe8 {[%emt 0:00:44]} 21. gxh5 {[%emt 0:04:07]} 1-0

[Event "African Open (w)"]
[Site "followchess.com"]
[Date "2022.09.25"]
[Round "7"]
[White "Oyenga, Justine Anassika"]
[Black "Yavo Tchetche, Marie"]
[Result "0-1"]
[ECO "B20"]
[WhiteElo "1192"]
[BlackElo "1363"]
[PlyCount "66"]
[EventDate "2022.??.??"]
[TimeControl "5400+30"]

1. e4 {[%emt 0:00:08]} c5 {[%emt 0:00:33]} 2. Bc4 {[%emt 0:00:11]} d6 {[%emt 0:
00:49]} 3. Nf3 {[%emt 0:00:20]} Nf6 {[%emt 0:00:30]} 4. d3 {[%emt 0:00:48]} g6
{[%emt 0:00:52]} 5. c3 {[%emt 0:00:12]} Bg7 {[%emt 0:00:36]} 6. Nbd2 {[%emt 0:
00:20]} Nc6 {[%emt 0:01:27]} 7. d4 {[%emt 0:00:09]} O-O {[%emt 0:01:53]} 8. O-O
{[%emt 0:01:08]} cxd4 {[%emt 0:02:31]} 9. cxd4 {[%emt 0:00:08]} d5 {[%emt 0:01:
24]} 10. e5 {[%emt 0:01:18]} dxc4 {[%emt 0:01:07]} 11. exf6 {[%emt 0:00:02]}
Bxf6 12. Nxc4 Nxd4 {[%emt 0:02:22]} 13. Nxd4 {[%emt 0:04:40]} Qxd4 14. Qb3 Be6
{[%emt 0:02:34]} 15. Be3 {[%emt 0:07:41]} Qxc4 {[%emt 0:01:11]} 16. Qxb7 {
[%emt 0:01:18]} Rab8 {[%emt 0:01:15]} 17. Qxa7 {[%emt 0:01:06]} Rxb2 {[%emt 0:
00:16]} 18. Rac1 {[%emt 0:01:37]} Qxa2 {[%emt 0:00:31]} 19. Qc7 {[%emt 0:06:37]
} Rc8 {[%emt 0:02:30]} 20. Qg3 {[%emt 0:00:56]} Rxc1 {[%emt 0:01:52]} 21. Bxc1
{[%emt 0:00:12]} Rc2 {[%emt 0:01:38]} 22. Re1 {[%emt 0:02:39]} Bd4 {[%emt 0:07:
25]} 23. Be3 {[%emt 0:06:18]} Bxe3 24. Qxe3 Qd5 {[%emt 0:06:32]} 25. h3 Qd2 26.
Qxd2 {[%emt 0:10:42]} Rxd2 {[%emt 0:00:49]} 27. Rc1 {[%emt 0:01:04]} Bd5 {
[%emt 0:00:46]} 28. Rc7 {[%emt 0:00:41]} e6 {[%emt 0:00:24]} 29. Rc8+ {[%emt 0:
00:29]} Kg7 {[%emt 0:00:42]} 30. Rd8 {[%emt 0:00:21]} h5 {[%emt 0:00:37]} 31.
h4 {[%emt 0:00:29]} Kf6 {[%emt 0:00:44]} 32. Re8 {[%emt 0:00:48]} Rd4 {[%emt 0:
01:38]} 33. g3 {[%emt 0:00:41]} Rd1+ {[%emt 0:00:17]} 0-1

[Event "African Open (w)"]
[Site "followchess.com"]
[Date "2022.09.25"]
[Round "7"]
[White "Mudodo, Refiloe Hazel"]
[Black "Pelomoh Jessica"]
[Result "0-1"]
[ECO "C03"]
[WhiteElo "1683"]
[BlackElo "1904"]
[PlyCount "98"]
[EventDate "2022.??.??"]
[TimeControl "5400+30"]

1. e4 {[%emt 0:00:09]} e6 {[%emt 0:00:08]} 2. d4 {[%emt 0:00:17]} d5 {[%emt 0:
00:06]} 3. Nd2 {[%emt 0:00:19]} dxe4 {[%emt 0:00:11]} 4. Nxe4 {[%emt 0:00:16]}
Be7 {[%emt 0:00:07]} 5. Nf3 {[%emt 0:02:51]} Nd7 {[%emt 0:00:03]} 6. Bd3 {
[%emt 0:01:45]} Ngf6 {[%emt 0:00:04]} 7. Nxf6+ {[%emt 0:01:12]} Nxf6 {[%emt 0:
00:17]} 8. O-O {[%emt 0:01:17]} O-O {[%emt 0:00:05]} 9. Qe2 {[%emt 0:01:44]} b6
{[%emt 0:05:05]} 10. Bf4 {[%emt 0:06:47]} Bb7 {[%emt 0:00:26]} 11. c3 {[%emt 0:
00:50]} Rc8 {[%emt 0:01:46]} 12. Ba6 {[%emt 0:04:42]} Nd5 {[%emt 0:05:03]} 13.
Bxb7 {[%emt 0:01:57]} Nxf4 {[%emt 0:00:20]} 14. Qe4 {[%emt 0:01:18]} Rb8 {
[%emt 0:00:20]} 15. Qxf4 {[%emt 0:00:52]} Rxb7 {[%emt 0:00:21]} 16. Qe4 {
[%emt 0:02:25]} Qd5 {[%emt 0:00:37]} 17. Qxd5 {[%emt 0:04:35]} exd5 {[%emt 0:
00:03]} 18. Rfe1 {[%emt 0:00:44]} Bf6 {[%emt 0:00:12]} 19. Ne5 {[%emt 0:02:13]}
c5 {[%emt 0:01:08]} 20. Nf3 {[%emt 0:04:29]} g6 {[%emt 0:01:12]} 21. Rad1 {
[%emt 0:02:29]} Rd8 {[%emt 0:00:51]} 22. Re2 {[%emt 0:01:48]} Kg7 {[%emt 0:01:
36]} 23. g3 {[%emt 0:02:02]} a5 {[%emt 0:04:16]} 24. Kg2 {[%emt 0:04:32]} c4 {
[%emt 0:00:07]} 25. Rde1 {[%emt 0:01:29]} b5 {[%emt 0:01:07]} 26. Re8 {[%emt 0:
03:01]} Rbb8 {[%emt 0:05:03]} 27. Rxd8 {[%emt 0:01:24]} Rxd8 {[%emt 0:00:02]}
28. Ne5 {[%emt 0:03:03]} Rd6 {[%emt 0:00:24]} 29. Ng4 {[%emt 0:01:04]} Re6 {
[%emt 0:05:11]} 30. Rxe6 {[%emt 0:02:02]} fxe6 {[%emt 0:01:04]} 31. Nxf6 {
[%emt 0:00:55]} Kxf6 {[%emt 0:00:16]} 32. Kf3 {[%emt 0:00:17]} h5 {[%emt 0:00:
45]} 33. a3 {[%emt 0:00:48]} e5 {[%emt 0:00:29]} 34. dxe5+ {[%emt 0:00:22]}
Kxe5 {[%emt 0:00:03]} 35. Ke3 {[%emt 0:00:28]} d4+ {[%emt 0:04:17]} 36. cxd4+ {
[%emt 0:01:40]} Kd5 {[%emt 0:00:02]} 37. f4 {[%emt 0:00:39]} b4 {[%emt 0:00:10]
} 38. axb4 {[%emt 0:03:02]} axb4 {[%emt 0:00:16]} 39. h3 {[%emt 0:02:52]} b3 {
[%emt 0:01:10]} 40. g4 {[%emt 0:00:54]} c3 {[%emt 0:00:06]} 41. bxc3 {[%emt 0:
04:31]} b2 {[%emt 0:00:03]} 42. gxh5 {[%emt 0:00:12]} gxh5 {[%emt 0:00:27]} 43.
Kf3 {[%emt 0:02:00]} b1=Q {[%emt 0:00:07]} 44. Kg3 {[%emt 0:00:29]} Qf5 {
[%emt 0:00:46]} 45. Kh4 {[%emt 0:00:23]} Kc4 {[%emt 0:00:05]} 46. d5 {[%emt 0:
00:24]} Kxd5 {[%emt 0:00:18]} 47. c4+ {[%emt 0:00:24]} Kxc4 {[%emt 0:00:05]}
48. Kg3 {[%emt 0:00:05]} Kd4 {[%emt 0:00:32]} 49. Kh4 {[%emt 0:00:13]} Ke4 {
[%emt 0:00:20]} 0-1